Workbook

Sheet Plano
A1: CÓDIGO | B1: DESCRIÇÃO | C1: 2012 | D1: 2013 | E1: 2014 | F1: 2015
C2: Arrecadado | D2: Arrecadado | E2: Arrecadado | F2: Reestimado
A3: 1.0.0.0.00.00.00.00 | B3: RECEITAS CORRENTES | C3: =C4+C5+C8+C13+C14+C15+C16+C17 -> 47010371.97 | D3: =D4+D5+D8+D13+D14+D15+D16+D17 -> 53650655.46 | E3: =E4+E5+E8+E13+E14+E15+E16+E17 -> 58495029.01 | F3: =F4+F5+F8+F13+F14+F15+F16+F17 -> 55343210.83
A4: 1.1.0.0.00.00.00.00 | B4: RECEITA TRIBUTARIA | C4: 5235067.32 | D4: 7275718.52 | E4: 8049055.47 | F4: 6932749.41
A5: 1.2.0.0.00.00.00.00 | B5: RECEITA DE CONTRIBUICOES | C5: =C6+C7 -> 1035417.56 | D5: =D6+D7 -> 1181586.49 | E5: =E6+E7 -> 1616157.76 | F5: =F6+F7 -> 1087293.61
A6: 1.2.0.0.00.00.00.00 | B6: Receitas de Contribuições - P M | C6: 0 | D6: 0 | E6: 0 | F6: 0
A7: 1.2.0.0.0.0.0.0.0.0.0 | B7: Receita de Contribuições - R P P S (Fonte 0050) | C7: 1035417.56 | D7: 1181586.49 | E7: 1616157.76 | F7: 1087293.61
A8: 1.3.0.0.00.00.00.00 | B8: RECEITA PATRIMONIAL | C8: =C9+C12 -> 3197642.69 | D8: =D9+D12 -> 2305219.94 | E8: =E9+E12 -> 4865789.26 | F8: =F9+F12 -> 4268874.33
A9: 1.3.2.0.00.00.00.00 | B9: Rendimentos de Aplicações Financeiras | C9: =C10+C11 -> 3040802.93 | D9: =D10+D11 -> 2279906.18 | E9: =E10+E11 -> 4669501.32 | F9: =F10+F11 -> 4127011.15
A10: 1.3.2.0.00.00.00.00 | B10: Rendimentos de Aplicações - PM | C10: 282866.94 | D10: 333324.42 | E10: 3097271.74 | F10: 759791.52
A11: 1.3.2.0.00.00.00.00 | B11: Rendimentos de Aplicações - RPPS (Fonte 0050) | C11: 2757935.99 | D11: 1946581.76 | E11: 1572229.58 | F11: 3367219.63
A12: 1.3.9.0.00.00.00.00 | B12: Outras Receitas Patrimoniais | C12: 156839.76 | D12: 25313.76 | E12: 196287.94 | F12: 141863.18
A13: 1.4.0.0.00.00.00.00 | B13: RECEITA AGROPECUARIA | C13: 0 | D13: 0 | E13: 0 | F13: 0
A14: 1.5.0.0.00.00.00.00 | B14: RECEITA INDUSTRIAL | C14: 0 | D14: 0 | E14: 0 | F14: 0
A15: 1.6.0.0.00.00.00.00 | B15: RECEITA DE SERVICOS | C15: 613537.44 | D15: 381240.16 | E15: 429079.13 | F15: 290417.57
A16: 1.7.0.0.00.00.00.00 | B16: TRANSFERENCIAS CORRENTES | C16: 36008172.6 | D16: 41596360.35 | E16: 42771862.63 | F16: =40458198/11*11.5 -> 42297207
A17: 1.9.0.0.00.00.00.00 | B17: OUTRAS RECEITAS CORRENTES | C17: =C18+C19 -> 920534.36 | D17: =D18+D19 -> 910530 | E17: =E18+E19 -> 763084.76 | F17: =F18+F19 -> 466668.91
A18: 1.9.0.0.00.00.00.00 | B18: Outras Receitas Correntes - P M | C18: 920534.36 | D18: 910530 | E18: 763084.76 | F18: 466668.91
A19: 1.9.0.0.00.00.00.00 | B19: Outras Receitas Correntes - R P P S (Fonte 0050) | C19: 0 | D19: 0 | E19: 0 | F19: 0
A20: 2.0.0.0.00.00.00.00 | B20: RECEITAS DE CAPITAL | C20: =C21+C22+C23+C24+C25 -> 3298306.78 | D20: =D21+D22+D23+D24+D25 -> 2996769.69 | E20: =E21+E22+E23+E24+E25 -> 5805408.08 | F20: =F21+F22+F23+F24+F25 -> 4691439.83
A21: 2.1.0.0.00.00.00.00 | B21: OPERACOES DE CREDITO | C21: 0 | D21: 0 | E21: 0 | F21: 0
A22: 2.2.0.0.00.00.00.00 | B22: ALIENACAO DE BENS | C22: 6111.94 | D22: 1279.47 | E22: 152720 | F22: 0
A23: 2.3.0.0.00.00.00.00 | B23: AMORTIZACAO DE EMPRESTIMOS | C23: 0 | D23: 0 | E23: 0 | F23: 0
A24: 2.4.0.0.00.00.00.00 | B24: TRANSFERENCIAS DE CAPITAL | C24: 3292194.84 | D24: 2995490.22 | E24: 5652688.08 | F24: 4691439.83
A25: 2.5.0.0.00.00.00.00 | B25: OUTRAS RECEITAS DE CAPITAL | C25: 0 | D25: 0 | E25: 0 | F25: 0
A26: 7.2.1.0.00.00.00.00 | B26: Receitas Intra Orçamentárias - RPPS (Fonte 0050) | C26: 2055228.92 | D26: 2541020.9 | E26: 3274408.32 | F26: 2255488.24
A27: 9.0.0.0.00.00.00.00 | B27: ( - ) DEDUÇÕES DA RECEITA | C27: -4682542.19 | D27: -6277765.65 | E27: -6665769.57 | F27: -5881163.4
B29: TOTAL DA RECEITA | C29: =C3+C20+C26+C27 -> 47681365.48 | D29: =D3+D20+D26+D27 -> 52910680.4 | E29: =E3+E20+E26+E27 -> 60909075.84 | F29: =F3+F20+F27+F26 -> 56408975.5
A31: CÓDIGO | B31: DESCRIÇÃO | C31: 2012 | D31: 2013 | E31: 2014 | F31: 2015
C32: Liquidado | D32: Liquidado | E32: Liquidado | F32: Reestimado
A33: 3.0.00.00.00.00.00 | B33: DESPESAS CORRENTES | C33: =C34+C37+C40 -> 35258314.62 | D33: =D34+D37+D40 -> 43417992.71 | E33: =E34+E37+E40 -> 45542544.09 | F33: =F34+F37+F40 -> 46308356.87
A34: 3.1.00.00.00.00.00 | B34: PESSOAL E ENCARGOS SOCIAIS | C34: =C35+C36 -> 20969384.49 | D34: =D35+D36 -> 26516003.68 | E34: =E35+E36 -> 27460882.83 | F34: =F35+F36 -> 29483148
A35: 3.1.00.00.00.00.00 | B35: Pessoal Próprio | C35: 19444887.6 | D35: 24516809.34 | E35: =26480882.83-E36+980000 -> 25403331.38 | F35: 26786586
A36: 3.1.00.00.00.00.00 | B36: Pessoal do R P P S (Fonte 0050) | C36: 1524496.89 | D36: 1999194.34 | E36: 2057551.45 | F36: 2696562
A37: 3.2.00.00.00.00.00 | B37: JUROS E ENCARGOS DA DÍVIDA | C37: =C38+C39 -> 0 | D37: =D38+D39 -> 0 | E37: =E38+E39 -> 39508.44 | F37: =F38+F39 -> 0
A38: 3.2.00.00.00.00.00 | B38: Juros e Encargos da Dívida | C38: 0 | D38: 0 | E38: 39508.44 | F38: 0
A39: 3.2.00.00.00.00.00 | B39: Juros e encargos da Dívida RPPS (Fonte 0050) | C39: 0 | D39: 0 | E39: 0 | F39: 0
A40: 3.3.00.00.00.00.00 | B40: OUTRAS DESPESAS CORRENTES | C40: =C41+C42 -> 14288930.13 | D40: =D41+D42 -> 16901989.03 | E40: =E41+E42 -> 18042152.82 | F40: =F41+F42 -> 16825208.87
A41: 3.3.00.00.00.00.00 | B41: Outras Despesas Correntes | C41: =13969782.8+302758.51 -> 14272541.31 | D41: =16901989.03-D42 -> 16885947.85 | E41: 18018388.93 | F41: 16813484.95
A42: 3.3.00.00.00.00.00 | B42: Outras Despesas Corrente RPPS (Fonte 0050) | C42: 16388.82 | D42: 16041.18 | E42: 23763.89 | F42: 11723.92
A43: 4.0.00.00.00.00.00 | B43: DESPESAS DE CAPITAL | C43: =C44+C47+C50 -> 2965650.88 | D43: =D44+D47+D50 -> 2199533.75 | E43: =E44+E47+E50 -> 7108620.99 | F43: =F44+F47 -> 6060716
A44: 4.4.00.00.00.00.00 | B44: INVESTIMENTOS | C44: =C45+C46 -> 2965650.88 | D44: =D45+D46 -> 2199533.75 | E44: =E45+E46 -> 7020562.6 | F44: =F45+F46 -> 6060716
A45: 4.4.00.00.00.00.00 | B45: Investimentos | C45: 2962232.88 | D45: =2199533.75-D46 -> 2197813.75 | E45: 7020562.6 | F45: 6059126
A46: 4.4.00.00.00.00.00 | B46: Invetimentos RPPS (Fonte 0050) | C46: 3418 | D46: 1720 | E46: 0 | F46: 1590
A47: 4.5.00.00.00.00.00 | B47: INVERSÕES FINANCEIRAS | C47: =C48+C49 -> 0 | D47: =D48+D49 -> 0 | E47: =E48+E49 -> 0 | F47: =F48+F49 -> 0
A48: 4.5.90.66.00.00.00 | B48: Concessão de Empréstimos e Financiamentos | C48: 0 | D48: 0 | E48: 0 | F48: 0
A49: 4.5.90.99.00.00.00 | B49: Outras inversões Financeiras | C49: 0 | D49: 0 | E49: 0 | F49: 0
A50: 4.6.00.00.00.00.00 | B50: AMORTIZAÇÃO DA DÍVIDA PÚBLICA | C50: 0 | D50: 0 | E50: 88058.39 | F50: 0
A52: 9.0.00.00.00.00.00 | B52: RESERVA DE CONTINGÊNCIA | F52: 0
A53: 7.7.99.99.99.99.99 | B53: RESERVA DE CONTINGÊNCIA DO RPPS | F53: =F7+F11+F19+F26-F36-F42-F46 -> 4000125.56
B55: TOTAL DA DESPESA | C55: =C33+C43 -> 38223965.5 | D55: =D33+D43 -> 45617526.46 | E55: =E33+E43 -> 52651165.08 | F55: =F33+F43+F52+F53 -> 56369198.43
B57: PREVISÕES DA LEI DE ORÇAMENTO | C57: 2012 | D57: 2013 | E57: 2014 | F57: 2015
B58: Receita Prevista (já deduzido o FUNDEB) | C58: 37758200.81 | D58: 46770482.29 | E58: 74864268.73 | F58: 80789571.83
A59: 1.3.2.0.00.00.00.00 | B59: Rendimento de Aplicações Financeiras | C59: 1121110.86 | D59: 1851481.59 | E59: 0 | F59: 367508.62
A60: 2.1.0.0.00.00.00.00 | B60: Receita de Operações de Crédito | C60: 0 | D60: 0 | E60: 0 | F60: 4917981.85
A61: 2.2.0.0.00.00.00.00 | B61: Receita de Alienação de Bens | C61: 2624 | D61: 5826.56 | E61: 5000 | F61: 0
A62: 2.3.0.0.00.00.00.00 | B62: Receita de Amort.de Empréstimos Concedidos | C62: 0 | D62: 0 | E62: 0 | F62: 0
B63: Despesa Fixada (cfe lei de orçamento) | C63: =C58 -> 37758200.81 | D63: =D58 -> 46770482.29 | E63: =E58 -> 74864268.73 | F63: =F58 -> 80789571.83
A64: 3.2.00.00.00.00.00 | B64: Juros e Encargos da Dívida | C64: 0 | D64: 0 | E64: 0 | F64: 248482.17
A65: 4.6.00.00.00.00.00 | B65: Amortização da Dívida | C65: 0 | D65: 0 | E65: 0 | F65: 0
A66: 4.5.90.66.00.00.00 | B66: Concessão de Empréstimos | C66: 0 | D66: 0 | E66: 0 | F66: 0

Sheet Dívida
A1: =Parâmetros!A7 -> Município de Jaguarão
A2: LEI DE DIRETRIZES ORÇAMENTÁRIAS PARA 2016
A3: TABELA 02 - Demonstraitvo da Evolução da Dívida e Resultado Nominal
A5: Exercício | B5: 2013 | C5: 2014 | D5: 2015 | E5: 2016 | F5: 2017 | G5: 2018
B6: Saldo | C6: Saldo | D6: Reestimativa | E6: Previsão | F6: Previsão | G6: Previsão
A7: (1) Dívida Consolidada | B7: 1905151.12 | C7: 619862.9 | D7: 0 | E7: =D7+Projeções!G27-Projeções!G45-Projeções!G57 -> 9442464.5 | F7: =E7+Projeções!H27-Projeções!H45-Projeções!H57 -> 13412720.56 | G7: =F7+Projeções!I27-Projeções!I45-Projeções!I57 -> 12021604.7
A8: (2) Disponibilidades Financeiras (Líquidas) | B8: 10970310.84 | C8: 13875933.9 | D8: 15274028.41 | E8: =(B8+C8+D8)/3 -> 13373424.38 | F8: =(C8+D8+E8)/3 -> 14174462.23 | G8: =(D8+E8+F8)/3 -> 14273971.67
A9: (3) Dívida Consolidada Líquida | B9: =B7-B8 -> -9065159.72 | C9: -13256071 | D9: -15274028.41 | E9: -3930959.883 | F9: -761741.6711 | G9: -2252366.975
A10: (4) Passivos Reconhecidos | B10: 1098895.69 | C10: 11729103.87 | D10: 12911133.31 | E10: =D10*106% -> 13685801.31 | F10: =E10*106% -> 14506949.39 | G10: =F10*106% -> 15377366.35
A11: (5) Dívida Fiscal Líquida | B11: =B9-B10 -> -10164055.41 | C11: -24985174.87 | D11: -28185161.72 | E11: -17616761.19 | F11: -15268691.06 | G11: -17629733.33
A12: (6) Resultado Nominal | C12: =C11-B11 -> -14821119.46 | D12: =D11-C11 -> -3199986.85 | E12: =E11-D11 -> 10568400.53 | F12: =F11-E11 -> 2348070.134 | G12: =G11-F11 -> -2361042.267
A14: Cronograma Anual de Operações Realizadas e do Serviço da Dívida | G14: Valores em R$
A15: Operações de Crédito / Pagamentos | B15: 2013 | C15: 2014 | D15: 2015 | E15: 2016 | F15: 2017 | G15: 2018
B16: Realizado | C16: Realizado | D16: Reestimativa | E16: Previsão | F16: Previsão | G16: Previsão
A17: 2.1 - Operações de Crédito | B17: =Plano!D21 -> 0 | C17: =Plano!E21 -> 0 | D17: =Plano!F21 -> 0 | E17: =5600000+9900000-D17-F17 -> 10550000 | F17: 4950000 | G17: 0
A18: 2.2 Encargos | B18: =Plano!D37 -> 0 | C18: =Plano!E37 -> 39508.44 | D18: =Plano!F37 -> 0 | E18: =108000*12 -> 1296000 | F18: =108000*12 -> 1296000 | G18: =108000*12 -> 1296000
A19: 2.3 Amortizações | B19: =Plano!D50 -> 0 | C19: =Plano!E50 -> 88058.39 | D19: =Plano!F50 -> 0 | E19: =(E17+F17+D17)/240*5 -> 322916.6667 | F19: =(E17+F17+D17)/240*12 -> 775000 | G19: =F19 -> 775000
A20: 2.2.3 Dívida Mobiliária

Sheet Projeções
A1: =Parâmetros!A7 -> Município de Jaguarão
A2: MEMÓRIA DE CÁLCULO DAS RECEITAS E DESPESAS - LOA PARA 2016
I5: Valores em R$ 1,00
A6: CÓDIGOS | B6: CONTAS | C6: REALIZADO | D6: REALIZADO | E6: REALIZADO | F6: REESTIMADO | G6: PROJETADO | H6: PROJETADO | I6: PROJETADO
B7: CONSOLIDADAS ANUAIS | C7: 2012 | D7: 2013 | E7: 2014 | F7: 2015 | G7: 2016 | H7: 2017 | I7: 2018
A9: 1.0.0.0.00.00.00.00 | B9: RECEITAS CORRENTES | C9: =Plano!C3 -> 47010371.97 | D9: =Plano!D3 -> 53650655.46 | E9: =Plano!E3 -> 58495029.01 | F9: =Plano!F3 -> 55343210.83 | G9: 66081853 | H9: =IF(H23=0,0,(H10+H11+H14+H19+H20+H21+H22+H23)) -> 69539884.3 | I9: =IF(I23=0,0,(I10+I11+I14+I19+I20+I21+I22+I23)) -> 73440355.62
A10: 1.1.0.0.00.00.00.00 | B10: RECEITA TRIBUTARIA | C10: =Plano!C4 -> 5235067.32 | D10: =Plano!D4 -> 7275718.52 | E10: =Plano!E4 -> 8049055.47 | F10: =Plano!F4 -> 6932749.41 | G10: 8931717.33 | H10: =IF(G10=0,0,(G10*(1+Parâmetros!F11)*(1+Parâmetros!F12)*(1+Parâmetros!F15))) -> 10333304.91 | I10: =IF(H10=0,0,(H10*(1+Parâmetros!G11)*(1+Parâmetros!G12)*(1+Parâmetros!G15))) -> 12097690.95
A11: 1.2.0.0.00.00.00.00 | B11: RECEITA DE CONTRIBUICOES | C11: =Plano!C5 -> 1035417.56 | D11: =Plano!D5 -> 1181586.49 | E11: =Plano!E5 -> 1616157.76 | F11: =Plano!F5 -> 1087293.61 | G11: 1619793.96 | H11: =H12+H13 -> 1734151.414 | I11: =I12+I13 -> 1865773.506
A12: 1.2.0.0.00.00.00.00 | B12: Receitas de Contribuições - P M | C12: =Plano!C6 -> 0 | D12: =Plano!D6 -> 0 | E12: =Plano!E6 -> 0 | F12: =Plano!F6 -> 0 | G12: 0 | H12: =G12*(1+Parâmetros!F11)*(1+Parâmetros!F12) -> 0 | I12: =H12*(1+Parâmetros!G11)*(1+Parâmetros!G12) -> 0
A13: 1.2.0.0.0.0.0.0.0.0.0 | B13: Receita de Contribuições - R P P S (Fonte 0050) | C13: =Plano!C7 -> 1035417.56 | D13: =Plano!D7 -> 1181586.49 | E13: =Plano!E7 -> 1616157.76 | F13: =Plano!F7 -> 1087293.61 | G13: 1619793.96 | H13: =G13*(1+Parâmetros!F11)*(1+Parâmetros!F17) -> 1734151.414 | I13: =H13*(1+Parâmetros!G11)*(1+Parâmetros!G17) -> 1865773.506
A14: 1.3.0.0.00.00.00.00 | B14: RECEITA PATRIMONIAL | C14: =Plano!C8 -> 3197642.69 | D14: =Plano!D8 -> 2305219.94 | E14: =Plano!E8 -> 4865789.26 | F14: =Plano!F8 -> 4268874.33 | G14: 4977742.24 | H14: =H15+H18 -> 5278842.243 | I14: =I15+I18 -> 5598180.19
A15: 1.3.2.0.00.00.00.00 | B15: Rendimentos de Aplicações Financeiras | C15: =Plano!C9 -> 3040802.93 | D15: =Plano!D9 -> 2279906.18 | E15: =Plano!E9 -> 4669501.32 | F15: =Plano!F9 -> 4127011.15 | G15: 4977742.24 | H15: =H16+H17 -> 5032859.945 | I15: =I16+I17 -> 5334831.541
A16: 1.3.2.0.00.00.00.00 | B16: Rendimentos de Aplicações - PM | C16: =Plano!C10 -> 282866.94 | D16: =Plano!D10 -> 333324.42 | E16: =Plano!E10 -> 3097271.74 | F16: =Plano!F10 -> 759791.52 | G16: 247981.08 | H16: =G16*(1+Parâmetros!F11) -> 262859.9448 | I16: =H16*(1+Parâmetros!G11) -> 278631.5415
A17: 1.3.2.0.00.00.00.00 | B17: Rendimentos de Aplicações - RPPS (Fonte 0050) | C17: =Plano!C11 -> 2757935.99 | D17: =Plano!D11 -> 1946581.76 | E17: =Plano!E11 -> 1572229.58 | F17: =Plano!F11 -> 3367219.63 | G17: 4500000 | H17: =G17*(1+Parâmetros!F11) -> 4770000 | I17: =H17*(1+Parâmetros!G11) -> 5056200
A18: 1.3.9.0.00.00.00.00 | B18: Outras Receitas Patrimoniais | C18: =Plano!C12 -> 156839.76 | D18: =Plano!D12 -> 25313.76 | E18: =Plano!E12 -> 196287.94 | F18: =Plano!F12 -> 141863.18 | G18: 229761.16 | H18: =G18*(1+Parâmetros!F11)*(1+Parâmetros!F12) -> 245982.2979 | I18: =H18*(1+Parâmetros!G11)*(1+Parâmetros!G12) -> 263348.6481
A19: 1.4.0.0.00.00.00.00 | B19: RECEITA AGROPECUARIA | C19: =Plano!C13 -> 0 | D19: =Plano!D13 -> 0 | E19: =Plano!E13 -> 0 | F19: =Plano!F13 -> 0 | G19: 0 | H19: =G19*(1+Parâmetros!F11)*(1+Parâmetros!F12) -> 0 | I19: =H19*(1+Parâmetros!G11)*(1+Parâmetros!G12) -> 0
A20: 1.5.0.0.00.00.00.00 | B20: RECEITA INDUSTRIAL | C20: =Plano!C14 -> 0 | D20: =Plano!D14 -> 0 | E20: =Plano!E14 -> 0 | F20: =Plano!F14 -> 0 | G20: 0 | H20: =G20*(1+Parâmetros!F11)*(1+Parâmetros!F12) -> 0 | I20: =H20*(1+Parâmetros!G11)*(1+Parâmetros!G12) -> 0
A21: 1.6.0.0.00.00.00.00 | B21: RECEITA DE SERVICOS | C21: =Plano!C15 -> 613537.44 | D21: =Plano!D15 -> 381240.16 | E21: =Plano!E15 -> 429079.13 | F21: =Plano!F15 -> 290417.57 | G21: 204899.27 | H21: =G21*(1+Parâmetros!F11)*(1+Parâmetros!F12) -> 219365.1585 | I21: =H21*(1+Parâmetros!G11)*(1+Parâmetros!G12) -> 234852.3386
A22: 1.7.0.0.00.00.00.00 | B22: TRANSFERENCIAS CORRENTES | C22: =Plano!C16 -> 36008172.6 | D22: =Plano!D16 -> 41596360.35 | E22: =Plano!E16 -> 42771862.63 | F22: =Plano!F16 -> 42297207 | G22: 48964743.96 | H22: =IF(G22=0,0,(G22*(1+Parâmetros!F11)*(1+Parâmetros!F12)*(1+Parâmetros!F16))) -> 50493627.63 | I22: =IF(H22=0,0,(H22*(1+Parâmetros!G11)*(1+Parâmetros!G12)*(1+Parâmetros!G16))) -> 52058735.82
A23: 1.9.0.0.00.00.00.00 | B23: OUTRAS RECEITAS CORRENTES | C23: =Plano!C17 -> 920534.36 | D23: =Plano!D17 -> 910530 | E23: =Plano!E17 -> 763084.76 | F23: =Plano!F17 -> 466668.91 | G23: 1382956.24 | H23: =H24+H25 -> 1480592.951 | I23: =I24+I25 -> 1585122.813
A24: 1.9.0.0.00.00.00.00 | B24: Outras Receitas Correntes - P M | C24: =Plano!C18 -> 920534.36 | D24: =Plano!D18 -> 910530 | E24: =Plano!E18 -> 763084.76 | F24: =Plano!F18 -> 466668.91 | G24: 1354156.24 | H24: =G24*(1+Parâmetros!F11)*(1+Parâmetros!F12) -> 1449759.671 | I24: =H24*(1+Parâmetros!G11)*(1+Parâmetros!G12) -> 1552112.703
A25: 1.9.0.0.00.00.00.00 | B25: Outras Receitas Correntes - R P P S (Fonte 0050) | C25: =Plano!C19 -> 0 | D25: =Plano!D19 -> 0 | E25: =Plano!E19 -> 0 | F25: =Plano!F19 -> 0 | G25: 28800 | H25: =G25*(1+Parâmetros!F11)*(1+Parâmetros!F12) -> 30833.28 | I25: =H25*(1+Parâmetros!G11)*(1+Parâmetros!G12) -> 33010.10957
A26: 2.0.0.0.00.00.00.00 | B26: RECEITAS DE CAPITAL | C26: =Plano!C20 -> 3298306.78 | D26: =Plano!D20 -> 2996769.69 | E26: =Plano!E20 -> 5805408.08 | F26: =Plano!F20 -> 4691439.83 | G26: 24147883.92 | H26: =H27+H28+H29+H30+H31 -> 11144573.19 | I26: =I27+I28+I29+I30+I31 -> 6631910.061
A27: 2.1.0.0.00.00.00.00 | B27: OPERACOES DE CREDITO | C27: =Plano!C21 -> 0 | D27: =Plano!D21 -> 0 | E27: =Plano!E21 -> 0 | F27: =Plano!F21 -> 0 | G27: 9806830.92 | H27: =Dívida!F17 -> 4950000 | I27: =Dívida!G17 -> 0
A28: 2.2.0.0.00.00.00.00 | B28: ALIENACAO DE BENS | C28: =Plano!C22 -> 6111.94 | D28: =Plano!D22 -> 1279.47 | E28: =Plano!E22 -> 152720 | F28: =Plano!F22 -> 0 | G28: 0 | H28: =G28*(1+Parâmetros!F11)*(1+Parâmetros!F12) -> 0 | I28: =H28*(1+Parâmetros!G11)*(1+Parâmetros!G12) -> 0
A29: 2.3.0.0.00.00.00.00 | B29: AMORTIZACAO DE EMPRESTIMOS | C29: =Plano!C23 -> 0 | D29: =Plano!D23 -> 0 | E29: =Plano!E23 -> 0 | F29: =Plano!F23 -> 0 | G29: 0 | H29: =G29*(1+Parâmetros!F11)*(1+Parâmetros!F12) -> 0 | I29: =H29*(1+Parâmetros!G11)*(1+Parâmetros!G12) -> 0
A30: 2.4.0.0.00.00.00.00 | B30: TRANSFERENCIAS DE CAPITAL | C30: =Plano!C24 -> 3292194.84 | D30: =Plano!D24 -> 2995490.22 | E30: =Plano!E24 -> 5652688.08 | F30: =Plano!F24 -> 4691439.83 | G30: 14341053 | H30: =AVERAGE(C30:G30) -> 6194573.194 | I30: =H30*(1+Parâmetros!G11)*(1+Parâmetros!G12) -> 6631910.061
A31: 2.5.0.0.00.00.00.00 | B31: OUTRAS RECEITAS DE CAPITAL | C31: =Plano!C25 -> 0 | D31: =Plano!D25 -> 0 | E31: =Plano!E25 -> 0 | F31: =Plano!F25 -> 0 | G31: 0 | H31: =G31*(1+Parâmetros!F11)*(1+Parâmetros!F12) -> 0 | I31: =H31*(1+Parâmetros!G11)*(1+Parâmetros!G12) -> 0
A32: 7.2.1.0.00.00.00.00 | B32: Receitas Intra Orçamentárias - RPPS (Fonte 0050) | C32: =Plano!C26 -> 2055228.92 | D32: =Plano!D26 -> 2541020.9 | E32: =Plano!E26 -> 3274408.32 | F32: =Plano!F26 -> 2255488.24 | G32: 6399640.08 | H32: =G32*(1+Parâmetros!F11)*(1+Parâmetros!F17) -> 6851454.67 | I32: =H32*(1+Parâmetros!G11)*(1+Parâmetros!G17) -> 7371480.079
A33: 9.0.0.0.00.00.00.00 | B33: DEDUÇÕES DA RECEITA | C33: =Plano!C27 -> -4682542.19 | D33: =Plano!D27 -> -6277765.65 | E33: =Plano!E27 -> -6665769.57 | F33: =Plano!F27 -> -5881163.4 | G33: -6940468.38 | H33: =G33*(1+Parâmetros!F11)*(1+Parâmetros!F12) -> -7430465.448 | I33: =H33*(1+Parâmetros!G11)*(1+Parâmetros!G12) -> -7955056.308
C34: =Plano!C28 -> 0 | D34: =Plano!D28 -> 0 | E34: =Plano!E28 -> 0 | F34: =Plano!F28 -> 0
B35: TOTAL DA RECEITA | C35: =Plano!C29 -> 47681365.48 | D35: =Plano!D29 -> 52910680.4 | E35: =Plano!E29 -> 60909075.84 | F35: =Plano!F29 -> 56408975.5 | G35: =G9+G26+G32+G33 -> 89688908.62 | H35: =H9+H26+H32+H33 -> 80105446.72 | I35: =I9+I26+I32+I33 -> 79488689.45
A38: CÓDIGOS | B38: CONTAS | C38: LIQUIDADO | D38: LIQUIDADO | E38: LIQUIDADO | F38: REESTIMADO | G38: PROJETADO | H38: PROJETADO | I38: PROJETADO
B39: CONSOLIDADAS ANUAIS | C39: 2012 | D39: 2013 | E39: 2014 | F39: 2015 | G39: 2016 | H39: 2017 | I39: 2018
A40: 3.0.00.00.00.00.00 | B40: DESPESAS CORRENTES | C40: =Plano!C33 -> 35258314.62 | D40: =Plano!D33 -> 43417992.71 | E40: =Plano!E33 -> 45542544.09 | F40: =Plano!F33 -> 46308356.87 | G40: 54934526.44 | H40: =H41+H44+H47 -> 59588714.15 | I40: =I41+I44+I47 -> 64362899.23
A41: 3.1.00.00.00.00.00 | B41: PESSOAL E ENCARGOS SOCIAIS | C41: =Plano!C34 -> 20969384.49 | D41: =Plano!D34 -> 26516003.68 | E41: =Plano!E34 -> 27460882.83 | F41: =Plano!F34 -> 29483148 | G41: 32954437.5 | H41: =H42+H43 -> 35633831 | I41: =I42+I43 -> 38721823.16
A42: 3.1.00.00.00.00.00 | B42: Pessoal Próprio | C42: =Plano!C35 -> 19444887.6 | D42: =Plano!D35 -> 24516809.34 | E42: =Plano!E35 -> 25403331.38 | F42: =Plano!F35 -> 26786586 | G42: 28517304.27 | H42: =G42*(1+Parâmetros!F11)*(1+Parâmetros!F13)*(1+Parâmetros!F17) -> 30835932.21 | I42: =H42*(1+Parâmetros!G11)*(1+Parâmetros!G13)*(1+Parâmetros!G17) -> 33508143.26
A43: 3.1.00.00.00.00.00 | B43: Pessoal do R P P S (Fonte 0050) | C43: =Plano!C36 -> 1524496.89 | D43: =Plano!D36 -> 1999194.34 | E43: =Plano!E36 -> 2057551.45 | F43: =Plano!F36 -> 2696562 | G43: 4437133.23 | H43: =G43*(1+Parâmetros!F11)*(1+Parâmetros!F13)*(1+Parâmetros!F17) -> 4797898.784 | I43: =H43*(1+Parâmetros!G11)*(1+Parâmetros!G13)*(1+Parâmetros!G17) -> 5213679.895
A44: 3.2.00.00.00.00.00 | B44: JUROS E ENCARGOS DA DÍVIDA | C44: =Plano!C37 -> 0 | D44: =Plano!D37 -> 0 | E44: =Plano!E37 -> 39508.44 | F44: =Plano!F37 -> 0 | G44: 364366.42 | H44: =H45+H46 -> 863296.54 | I44: =I45+I46 -> 1025134.76
A45: 3.2.00.00.00.00.00 | B45: Juros e Encargos da Dívida | C45: =Plano!C38 -> 0 | D45: =Plano!D38 -> 0 | E45: =Plano!E38 -> 39508.44 | F45: =Plano!F38 -> 0 | G45: 364366.42 | H45: 863296.54 | I45: 1025134.76
A46: 3.2.00.00.00.00.00 | B46: Juros e encargos da Dívida RPPS (Fonte 0050) | C46: =Plano!C39 -> 0 | D46: =Plano!D39 -> 0 | E46: =Plano!E39 -> 0 | F46: =Plano!F39 -> 0 | G46: 0 | H46: =G46*(1+Parâmetros!F11)*(1+Parâmetros!F19) -> 0 | I46: =H46*(1+Parâmetros!G11)*(1+Parâmetros!G19) -> 0
A47: 3.3.00.00.00.00.00 | B47: OUTRAS DESPESAS CORRENTES | C47: =Plano!C40 -> 14288930.13 | D47: =Plano!D40 -> 16901989.03 | E47: =Plano!E40 -> 18042152.82 | F47: =Plano!F40 -> 16825208.87 | G47: 21675722.52 | H47: =H48+H49 -> 23091586.61 | I47: =I48+I49 -> 24615941.31
A48: 3.3.00.00.00.00.00 | B48: Outras Despesas Correntes | C48: =Plano!C41 -> 14272541.31 | D48: =Plano!D41 -> 16885947.85 | E48: =Plano!E41 -> 18018388.93 | F48: =Plano!F41 -> 16813484.95 | G48: 21615722.52 | H48: =G48*(1+Parâmetros!F11)*(1+Parâmetros!F14) -> 23027667.4 | I48: =H48*(1+Parâmetros!G11)*(1+Parâmetros!G14) -> 24547802.57
A49: 3.3.00.00.00.00.00 | B49: Outras Despesas Corrente RPPS (Fonte 0050) | C49: =Plano!C42 -> 16388.82 | D49: =Plano!D42 -> 16041.18 | E49: =Plano!E42 -> 23763.89 | F49: =Plano!F42 -> 11723.92 | G49: 60000 | H49: =G49*(1+Parâmetros!F11)*(1+Parâmetros!F14) -> 63919.21632 | I49: =H49*(1+Parâmetros!G11)*(1+Parâmetros!G14) -> 68138.74265
A50: 4.0.00.00.00.00.00 | B50: DESPESAS DE CAPITAL | C50: =Plano!C43 -> 2965650.88 | D50: =Plano!D43 -> 2199533.75 | E50: =Plano!E43 -> 7108620.99 | F50: =Plano!F43 -> 6060716 | G50: 29668709.3 | H50: =H51+H54+H57 -> 12035877.46 | I50: =I51+I54+I57 -> 10338414.86
A51: 4.4.00.00.00.00.00 | B51: INVESTIMENTOS | C51: =Plano!C44 -> 2965650.88 | D51: =Plano!D44 -> 2199533.75 | E51: =Plano!E44 -> 7020562.6 | F51: =Plano!F44 -> 6060716 | G51: 29668709.3 | H51: =H52+H53 -> 11919430.06 | I51: =I52+I53 -> 9972433.765
A52: 4.4.00.00.00.00.00 | B52: Investimentos | C52: =Plano!C45 -> 2962232.88 | D52: =Plano!D45 -> 2197813.75 | E52: =Plano!E45 -> 7020562.6 | F52: =Plano!F45 -> 6059126 | G52: 29658709.3 | H52: 11916842.46 | I52: =AVERAGE(C52:H52) -> 9969214.498
A53: 4.4.00.00.00.00.00 | B53: Investimentos RPPS (Fonte 0050) | C53: =Plano!C46 -> 3418 | D53: =Plano!D46 -> 1720 | E53: =Plano!E46 -> 0 | F53: =Plano!F46 -> 1590 | G53: 10000 | H53: 2587.6 | I53: =AVERAGE(C53:H53) -> 3219.266667
A54: 4.5.00.00.00.00.00 | B54: INVERSÕES FINANCEIRAS | C54: =Plano!C47 -> 0 | D54: =Plano!D47 -> 0 | E54: =Plano!E47 -> 0 | F54: =Plano!F47 -> 0 | G54: 0 | H54: =H55+H56 -> 0 | I54: =I55+I56 -> 0
A55: 4.5.90.66.00.00.00 | B55: Concessão de Empréstimos e Financiamentos | C55: =Plano!C48 -> 0 | D55: =Plano!D48 -> 0 | E55: =Plano!E48 -> 0 | F55: =Plano!F48 -> 0 | G55: 0 | H55: =G55*(1+Parâmetros!F11)*(1+Parâmetros!F12) -> 0 | I55: =H55*(1+Parâmetros!G11)*(1+Parâmetros!G12) -> 0
A56: 4.5.90.99.00.00.00 | B56: Outras Inversões Financeiras | C56: =Plano!C49 -> 0 | D56: =Plano!D49 -> 0 | E56: =Plano!E49 -> 0 | F56: =Plano!F49 -> 0 | G56: 0 | H56: =G56*(1+Parâmetros!F11)*(1+Parâmetros!F12) -> 0 | I56: =H56*(1+Parâmetros!G11)*(1+Parâmetros!G12) -> 0
A57: 4.6.00.00.00.00.00 | B57: AMORTIZAÇÃO DA DÍVIDA PÚBLICA | C57: =Plano!C50 -> 0 | D57: =Plano!D50 -> 0 | E57: =Plano!E50 -> 88058.39 | F57: =Plano!F50 -> 0 | G57: 0 | H57: 116447.4 | I57: 365981.1
A58: 9.0.00.00.00.00.00 | B58: RESERVA DE CONTINGÊNCIA | F58: =Plano!F52 -> 0 | G58: 244392.11 | H58: =H35-H40-H50-H59 -> -41178.64896 | I58: =I35-I40-I50-I59 -> -4254050.425
A59: 7.7.99.99.99.99.99 | B59: RESERVA DE CONTINGÊNCIA DO RPPS | F59: =Plano!F53 -> 4000125.56 | G59: 4841280.77 | H59: =(H13+H17+H25+H32)-(H43+H46+H49+H53) -> 8522033.763 | I59: =(I13+I17+I25+I32)-(I43+I46+I49+I53) -> 9041425.79
B60: TOTAL DA DESPESA | C60: =Plano!C55 -> 38223965.5 | D60: =Plano!D55 -> 45617526.46 | E60: =Plano!E55 -> 52651165.08 | F60: =Plano!F55 -> 56369198.43 | G60: =G40+G50+G58+G59 -> 89688908.62 | H60: =H40+H50+H58+H59 -> 80105446.72 | I60: =I40+I50+I58+I59 -> 79488689.45
A61: 50000002 | B61: Operação de Crédito Externo
B62: RESULTADOS | C62: REALIZADO | D62: =IF(#REF!>0,"REALIZADO","PROJETADO") ->  | E62: =IF(#REF!>0,"REALIZADO","PROJETADO") ->  | F62: =IF(#REF!>0,"REALIZADO","PROJETADO") ->  | G62: PROJETADO | I62: PROJETADO
B63: FISCAIS | C63: 1999 | D63: 2000 | E63: 2001 | F63: 2002 | G63: 2003 | I63: 2004
B65: 1. RECEITA CORRENTE LÍQUIDA | C65: =C8-#REF!-C14+C69-#REF! ->  | D65: =D8-#REF!-D14+D69-#REF! ->  | E65: =E8-#REF!-E14+E69-#REF! ->  | F65: =F8-#REF!-F14+F69-#REF! ->  | G65: =G8-#REF!-G14+G69-#REF! ->  | I65: =I8-#REF!-I14+I69-#REF! -> 
B66: 2. RECEITAS DE TRIBUTOS | C66: =C9 -> 47010371.97 | D66: =D9 -> 53650655.46 | E66: 58495029.01 | F66: 55343210.83 | G66: 66081853 | I66: 73440355.62
B67: 3. RECEITAS FINANCEIRAS | C67: =C19+C20+C22+#REF!+#REF!+#REF!+#REF! ->  | D67: =D19+D20+D22+#REF!+#REF!+#REF!+#REF! ->  | E67: =E19+E20+E22+#REF!+#REF!+#REF!+#REF! ->  | F67: =F19+F20+F22+#REF!+#REF!+#REF!+#REF! ->  | G67: =G19+G20+G22+#REF!+#REF!+#REF!+#REF! ->  | I67: =I19+I20+I22+#REF!+#REF!+#REF!+#REF! -> 
B68: 4. RENÚNCIA FISCAL | C68: =#REF! ->  | D68: =#REF! ->  | E68: =#REF! ->  | F68: =#REF! ->  | G68: =#REF! ->  | I68: =#REF! -> 
B69: 5. VALOR LÍQUIDO DO FUNDEF | C69: =#REF!-#REF! ->  | D69: =#REF!-#REF! ->  | E69: =#REF!-#REF! ->  | F69: =#REF!-#REF! ->  | G69: =#REF!-#REF! ->  | I69: =#REF!-#REF! -> 
B70: 6. TRANSFERÊNCIAS DA UNIÃO | C70: =#REF! ->  | D70: =#REF! ->  | E70: =#REF! ->  | F70: =#REF! ->  | G70: =#REF! ->  | I70: =#REF! -> 
B71: 7. TRANSFERÊNCIAS DOS ESTADOS | C71: =#REF! ->  | D71: =#REF! ->  | E71: =#REF! ->  | F71: =#REF! ->  | G71: =#REF! ->  | I71: =#REF! -> 
B72: 8. OPERAÇÕES DE CRÉDITO | C72: =#REF! ->  | D72: =#REF! ->  | E72: =#REF! ->  | F72: =#REF! ->  | G72: =#REF! ->  | I72: =#REF! -> 
B73: 9. AROS | C73: =C30 -> 3292194.84 | D73: =D30 -> 2995490.22 | E73: 5652688.08 | F73: 4691439.83 | G73: 14341053 | I73: 6631910.061
B74: 10. PESSOAL ATIVO | C74: =#REF!+#REF!+C55+C56+C57+#REF!+C59+C60+C44+#REF! ->  | D74: =#REF!+#REF!+D55+D56+D57+#REF!+D59+D60+D44+#REF! ->  | E74: =#REF!+#REF!+E55+E56+E57+#REF!+E59+E60+E44+#REF! ->  | F74: =#REF!+#REF!+F55+F56+F57+#REF!+F59+F60+F44+#REF! ->  | G74: =#REF!+#REF!+G55+G56+G57+#REF!+G59+G60+G44+#REF! ->  | I74: =#REF!+#REF!+I55+I56+I57+#REF!+I59+I60+I44+#REF! -> 
B75: 11. PESSOAL INATIVO | C75: =#REF!+#REF! ->  | D75: =#REF!+#REF! ->  | E75: =#REF!+#REF! ->  | F75: =#REF!+#REF! ->  | G75: =#REF!+#REF! ->  | I75: =#REF!+#REF! -> 
B76: 12. PENSIONISTAS | C76: =C51+C54 -> 2965650.88 | D76: =D51+D54 -> 2199533.75 | E76: =E51+E54 -> 7020562.6 | F76: =F51+F54 -> 6060716 | G76: =G51+G54 -> 29668709.3 | I76: =I51+I54 -> 9972433.765
B77: 13. SERVIÇOS DE TERCEIROS | C77: =#REF! ->  | D77: =#REF! ->  | E77: =#REF! ->  | F77: =#REF! ->  | G77: =#REF! ->  | I77: =#REF! -> 
B78: 14. OUTROS CUSTEIOS CORRENTES | C78: =C47+#REF!+#REF!+#REF!+#REF!+#REF!+#REF! ->  | D78: =D47+#REF!+#REF!+#REF!+#REF!+#REF!+#REF! ->  | E78: =E47+#REF!+#REF!+#REF!+#REF!+#REF!+#REF! ->  | F78: =F47+#REF!+#REF!+#REF!+#REF!+#REF!+#REF! ->  | G78: =G47+#REF!+#REF!+#REF!+#REF!+#REF!+#REF! ->  | I78: =I47+#REF!+#REF!+#REF!+#REF!+#REF!+#REF! -> 
B79: 15. INVESTIMENTOS | C79: =#REF! ->  | D79: =#REF! ->  | E79: =#REF! ->  | F79: =#REF! ->  | G79: =#REF! ->  | I79: =#REF! -> 
B80: 16. ENCARGOS DA DÍVIDA | C80: =#REF!+#REF! ->  | D80: =#REF!+#REF! ->  | E80: =#REF!+#REF! ->  | F80: =#REF!+#REF! ->  | G80: =#REF!+#REF! ->  | I80: =#REF!+#REF! -> 
B81: 17. AMORTIZAÇÕES DA DÍVIDA | C81: =#REF!+#REF! ->  | D81: =#REF!+#REF! ->  | E81: =#REF!+#REF! ->  | F81: =#REF!+#REF! ->  | G81: =#REF!+#REF! ->  | I81: =#REF!+#REF! -> 
B82: 18. DESPESAS FINANCEIRAS | C82: =C80+C81 ->  | D82: =D80+D81 -> 
B83: 19. RESULTADO PRIMÁRIO | C83: =((C8+C28)-(C67)-((#REF!+#REF!)-C82)) ->  | D83: =((D8+D28)-(D67)-((#REF!+#REF!)-D82)) ->  | E83: =((E8+E28)-(E67)-((#REF!+#REF!)-E82)) ->  | F83: =((F8+F28)-(F67)-((#REF!+#REF!)-F82)) ->  | G83: =((G8+G28)-(G67)-((#REF!+#REF!)-G82)) ->  | I83: =((I8+I28)-(I67)-((#REF!+#REF!)-I82)) -> 
B84: 20. RESULTADO NOMINAL | C84: =-(C83-(C80-C19-C20-C22-#REF!)) ->  | D84: =-(D83-(D80-D19-D20-D22-#REF!)) ->  | E84: =-(E83-(E80-E19-E20-E22-#REF!)) ->  | F84: =-(F83-(F80-F19-F20-F22-#REF!)) ->  | G84: =-(G83-(G80-G19-G20-G22-#REF!)) ->  | I84: =-(I83-(I80-I19-I20-I22-#REF!)) -> 

Sheet Parâmetros
A7: Município de Jaguarão
A8: LEI DE DIRETRIZES ORÇAMENTÁRIAS PARA 2016
A9: TABELA 01 - Parâmentos Utilizados nas Estimativas das Receitas e Despesas
A10: Execício | B10: 2013 | C10: 2014 | D10: 2015 | E10: 2016 | F10: 2017 | G10: 2018
A11: INFLAÇÃO MÉDIA ANUAL (I P C A) | B11: 0.0591 | C11: 0.0634 | D11: 0.0931 | E11: 0.1033 | F11: 0.06 | G11: 0.06
A12: VARIAÇÃO DO PIB | B12: 0.023 | C12: 0.001 | D12: 0 | E12: -0.025 | F12: 0.01 | G12: 0.01
A13: CRESCIMENTO VEGETATIVO DA FOLHA SALARIAL | B13: =IF(Projeções!C41=0,"-",((Projeções!D41/Projeções!C41)-1)-B11-B17) -> 0.1938103481 | C13: =IF(Projeções!D41=0,"-",((Projeções!E41/Projeções!D41)-1)-C11-C17) -> -0.04976570301 | D13: 0.02 | E13: 0 | F13: 0.01 | G13: =(D13+E13+F13)/3 -> 0.01
A14: CRESCIMENTO AUTÔNOMO DE OUTROS CUSTEIOS | B14: =IF(Projeções!C47=0,"-",((Projeções!D47/Projeções!C47)-1)-B11-B12) -> 0.1007729566 | C14: =IF(Projeções!D47=0,"-",((Projeções!E47/Projeções!D47)-1)-C11-C12) -> 0.003057373684 | D14: 0.005 | E14: 0.007 | F14: =(C14+D14+E14)/3 -> 0.005019124561 | G14: =(D14+E14+F14)/3 -> 0.00567304152
A15: ESFORÇO NA ARRECADAÇÃO TRIBUTÁRIA | B15: =IF(Projeções!C10=0,"-",((Projeções!D10/Projeções!C10)-1)-B11-B12) -> 0.3077041945 | C15: =IF(Projeções!D10=0,"-",((Projeções!E10/Projeções!D10)-1)-C11-C12) -> 0.04189011387 | D15: 0.05 | E15: 0.15 | F15: 0.08063003796 | G15: 0.09354334599
A16: CRESC.REAL DAS RECEITAS TRANSFERIDAS | B16: =IF(Projeções!C22=0,"-",((Projeções!D22/Projeções!C22)-1)-B11-B12) -> 0.07309220628 | C16: =IF(Projeções!D22=0,"-",((Projeções!E22/Projeções!D22)-1)-C11-C12) -> -0.03614026116 | D16: =IF(Projeções!E22=0,"-",((Projeções!F22/Projeções!E22)-1)-D11-D12) -> -0.1041973804 | E16: 0.03 | F16: -0.03677921385 | G16: -0.03699219808
A17: PERCENTUAL DE AUMENTO SALARIAL | B17: =7%-5.84% -> 0.0116 | C17: =8.11%-B11 -> 0.022 | D17: =6.34%-C11 -> 0 | E17: 0 | F17: 0.01 | G17: 0.015
A18: CRESCIMENTO DOS INVESTIMENTOS | B18: =IF(Projeções!C51=0,"-",((Projeções!D51/Projeções!C51)-1)-B11-B12) -> -0.3404301815 | C18: =IF(Projeções!D51=0,"-",((Projeções!E51/Projeções!D51)-1)-C11-C12) -> 2.127441271 | D18: =IF(Projeções!E51=0,"-",((Projeções!F51/Projeções!E51)-1)-D11-D12) -> -0.2298193279 | E18: =IF(Projeções!F51=0,"-",((Projeções!G51/Projeções!F51)-1)-E11-E12) -> 3.816948235 | F18: =IF(Projeções!G51=0,"-",((Projeções!H51/Projeções!G51)-1)-F11-F12) -> -0.6682491204 | G18: =IF(Projeções!H51=0,0,((Projeções!I51/Projeções!H51)-1)-G11-G12) -> -0.2333464254
A19: Taxa de Juros (Selic Efetiva) | B19: 0.1 | C19: 0.11 | D19: 0.1363 | E19: 0.1316 | F19: 0.135 | G19: 0.135
A20: PIB / RS (em R$ milhões) | B20: 310606 | C20: 330604 | D20: 331500 | E20: =D20*(1+E11+E12) -> 357456.45 | F20: =E20*(1+F11+F12) -> 382478.4015 | G20: =F20*(1+G11+G12) -> 409251.8896

Sheet Metas
A1: =Parâmetros!A7 -> Município de Jaguarão
A2: LEI DE DIRETRIZES ORÇAMENTÁRIAS
A3: ANEXO XI - METAS FISCAIS
A4: DEMONSTRATIVO DAS METAS ANUAIS - CONSOLIDADO
A5: EXERCÍCIO DE 2016
A7: AMF - Demonstrativo I (LRF, art. 4º, § 1º) | H7: 1
A8: ESPECIFICAÇÃO | B8: 2016 | E8: 2017 | H8: 2018
B9: Valor | C9: Valor | D9: % PIB | E9: Valor | F9: Valor | G9: % PIB | H9: Valor | I9: Valor | J9: % PIB
B10: Corrente | C10: Constante | D10: (a / PIB) | E10: Corrente | F10: Constante | G10: (b / PIB) | H10: Corrente | I10: Constante | J10: (c / PIB)
B11: (a) | D11: x 100 | E11: (b) | G11: x 100 | H11: (c) | J11: x 100
A12: Receita Total | B12: =Projeções!G35 -> 89688908.62 | C12: =B12/(1+Parâmetros!E11) -> 81291496.98 | D12: =B12/(Parâmetros!E20)/1000000 -> 0.0002509086313 | E12: =Projeções!H35 -> 80105446.72 | F12: =E12/((1+Parâmetros!E11)*(1+Parâmetros!F11)) -> 68495582.48 | G12: =E12/(Parâmetros!F20)/1000000 -> 0.0002094378307 | H12: =Projeções!I35 -> 79488689.45 | I12: =H12/((1+Parâmetros!E11)*(1+Parâmetros!F11)*(1+Parâmetros!G11)) -> 64120955.89 | J12: =H12/(Parâmetros!G20)/1000000 -> 0.0001942292546
A13: Receitas Primárias (I) | B13: =B12-(Projeções!G15+Projeções!G27+Projeções!G28+Projeções!G29) -> 74904335.46 | C13: =B13/(1+Parâmetros!E11) -> 67891176.89 | D13: =B13/(Parâmetros!E20)/1000000 -> 0.0002095481434 | E13: =E12-(Projeções!H15+Projeções!H27+Projeções!H28+Projeções!H29) -> 70122586.77 | F13: =E13/((1+Parâmetros!E11)*(1+Parâmetros!F11)) -> 59959561.09 | G13: =E13/(Parâmetros!F20)/1000000 -> 0.0001833373767 | H13: =H12-(Projeções!I15+Projeções!I27+Projeções!I28+Projeções!I29) -> 74153857.91 | I13: =H13/((1+Parâmetros!E11)*(1+Parâmetros!F11)*(1+Parâmetros!G11)) -> 59817519.76 | J13: =H13/(Parâmetros!G20)/1000000 -> 0.0001811936849
A14: Despesa Total | B14: =Projeções!G60 -> 89688908.62 | C14: =B14/(1+Parâmetros!E11) -> 81291496.98 | D14: =B14/(Parâmetros!E20)/1000000 -> 0.0002509086313 | E14: =Projeções!H60 -> 80105446.72 | F14: =E14/((1+Parâmetros!E11)*(1+Parâmetros!F11)) -> 68495582.48 | G14: =E14/(Parâmetros!F20)/1000000 -> 0.0002094378307 | H14: =Projeções!I60 -> 79488689.45 | I14: =H14/((1+Parâmetros!E11)*(1+Parâmetros!F11)*(1+Parâmetros!G11)) -> 64120955.89 | J14: =H14/(Parâmetros!G20)/1000000 -> 0.0001942292546
A15: Despesas Primárias (II) | B15: =B14-(Projeções!G44+Projeções!G55+Projeções!G57) -> 89324542.2 | C15: =B15/(1+Parâmetros!E11) -> 80961245.54 | D15: =B15/(Parâmetros!E20)/1000000 -> 0.0002498893004 | E15: =E14-(Projeções!H44+Projeções!H55+Projeções!H57) -> 79125702.78 | F15: =E15/((1+Parâmetros!E11)*(1+Parâmetros!F11)) -> 67657835.05 | G15: =E15/(Parâmetros!F20)/1000000 -> 0.000206876264 | H15: =H14-(Projeções!I44+Projeções!I55+Projeções!I57) -> 78097573.59 | I15: =H15/((1+Parâmetros!E11)*(1+Parâmetros!F11)*(1+Parâmetros!G11)) -> 62998787.7 | J15: =H15/(Parâmetros!G20)/1000000 -> 0.0001908300867
A16: Resultado Primário (I – II) | B16: =B13-B15 -> -14420206.74 | C16: =C13-C15 -> -13070068.65 | D16: =B16/(Parâmetros!E20)/1000000 -> -4.034115692e-05 | E16: =E13-E15 -> -9003116.005 | F16: =F13-F15 -> -7698273.964 | G16: =E16/(Parâmetros!F20)/1000000 -> -2.353888734e-05 | H16: =H13-H15 -> -3943715.681 | I16: =I13-I15 -> -3181267.939 | J16: =H16/(Parâmetros!G20)/1000000 -> -9.636401888e-06
A17: Resultado Nominal | B17: =Dívida!E12 -> 10568400.53 | C17: =B17/(1+Parâmetros!E11) -> 9578900.143 | D17: =B17/(Parâmetros!E20)/1000000 -> 2.956556114e-05 | E17: =Dívida!F12 -> 2348070.134 | F17: =E17/((1+Parâmetros!E11)*(1+Parâmetros!F11)) -> 2007758.999 | G17: =E17/(Parâmetros!F20)/1000000 -> 6.139092102e-06 | H17: =Dívida!G12 -> -2361042.267 | I17: =H17/((1+Parâmetros!E11)*(1+Parâmetros!F11)*(1+Parâmetros!G11)) -> -1904576.464 | J17: =H17/(Parâmetros!G20)/1000000 -> -5.76916644e-06
A18: Dívida Pública Consolidada | B18: =Dívida!E7 -> 9442464.5 | C18: =B18/(1+Parâmetros!E11) -> 8558383.486 | D18: =B18/(Parâmetros!E20)/1000000 -> 2.641570603e-05 | E18: =Dívida!F7 -> 13412720.56 | F18: =E18/((1+Parâmetros!E11)*(1+Parâmetros!F11)) -> 11468784.52 | G18: =E18/(Parâmetros!F20)/1000000 -> 3.506791627e-05 | H18: =Dívida!G7 -> 12021604.7 | I18: =H18/((1+Parâmetros!E11)*(1+Parâmetros!F11)*(1+Parâmetros!G11)) -> 9697439.85 | J18: =H18/(Parâmetros!G20)/1000000 -> 2.937458569e-05
A19: Dívida Consolidada Líquida | B19: =Dívida!E9 -> -3930959.883 | C19: =B19/(1+Parâmetros!E11) -> -3562911.16 | D19: =B19/(Parâmetros!E20)/1000000 -> -1.099703162e-05 | E19: =Dívida!F9 -> -761741.6711 | F19: =E19/((1+Parâmetros!E11)*(1+Parâmetros!F11)) -> -651340.7215 | G19: =E19/(Parâmetros!F20)/1000000 -> -1.991593952e-06 | H19: =Dívida!G9 -> -2252366.975 | I19: =H19/((1+Parâmetros!E11)*(1+Parâmetros!F11)*(1+Parâmetros!G11)) -> -1816911.619 | J19: =H19/(Parâmetros!G20)/1000000 -> -5.50362022e-06
A20: Fonte:

Sheet MetasRPPS
A1: =Parâmetros!A7 -> Município de Jaguarão
A2: LEI DE DIRETRIZES ORÇAMENTÁRIAS
A3: ANEXO III - METAS FISCAIS
A4: DEMONSTRATIVO DAS METAS DE RESULTADO PRIMÁRIO DO PREGIME PRÓPRIO DE PREVIDÊNCIA SOCIAL
A5: EXERCÍCIO DE 2016
A7: AMF - Demonstrativo I (LRF, art. 4º, § 1º) | H7: 1
A8: ESPECIFICAÇÃO | B8: 2015 | E8: 2016 | H8: 2017
B9: Valor | C9: Valor | D9: % PIB | E9: Valor | F9: Valor | G9: % PIB | H9: Valor | I9: Valor | J9: % PIB
B10: Corrente | C10: Constante | D10: (a / PIB) | E10: Corrente | F10: Constante | G10: (b / PIB) | H10: Corrente | I10: Constante | J10: (c / PIB)
B11: (a) | D11: x 100 | E11: (b) | G11: x 100 | H11: (c) | J11: x 100
A12: Receita Total RPPS | B12: =Projeções!G13+Projeções!G17+Projeções!G25+Projeções!G32 -> 12548234.04 | C12: =B12/(1+Parâmetros!E11) -> 11373365.39 | D12: =B12/(Parâmetros!E20)/1000000 -> 3.510423169e-05 | E12: =Projeções!H13+Projeções!H17+Projeções!H25+Projeções!H32 -> 13386439.36 | F12: =E12/((1+Parâmetros!E11)*(1+Parâmetros!F11)) -> 11446312.32 | G12: =E12/(Parâmetros!F20)/1000000 -> 3.499920338e-05 | H12: =Projeções!I13+Projeções!I17+Projeções!I25+Projeções!I32 -> 14326463.69 | I12: =H12/((1+Parâmetros!E11)*(1+Parâmetros!F11)*(1+Parâmetros!G11)) -> 11556695.08 | J12: =H12/(Parâmetros!G20)/1000000 -> 3.500646926e-05
A13: Receitas Primárias RPPS (I) | B13: =B12-Projeções!G17 -> 8048234.04 | C13: =B13/(1+Parâmetros!E11) -> 7294692.323 | D13: =B13/(Parâmetros!E20)/1000000 -> 2.251528554e-05 | E13: =E12-Projeções!H17 -> 8616439.363 | F13: =E13/((1+Parâmetros!E11)*(1+Parâmetros!F11)) -> 7367639.246 | G13: =E13/(Parâmetros!F20)/1000000 -> 2.252791093e-05 | H13: =H12-Projeções!I17 -> 9270263.695 | I13: =H13/((1+Parâmetros!E11)*(1+Parâmetros!F11)*(1+Parâmetros!G11)) -> 7478022.012 | J13: =H13/(Parâmetros!G20)/1000000 -> 2.265173095e-05
A14: Despesa Total RPPS | B14: =Projeções!G43+Projeções!G46+Projeções!G49+Projeções!G53+Projeções!G59 -> 9348414 | C14: =B14/(1+Parâmetros!E11) -> 8473138.766 | D14: =B14/(Parâmetros!E20)/1000000 -> 2.615259565e-05 | E14: =Projeções!H43+Projeções!H46+Projeções!H49+Projeções!H53+Projeções!H59 -> 13386439.36 | F14: =E14/((1+Parâmetros!E11)*(1+Parâmetros!F11)) -> 11446312.32 | G14: =E14/(Parâmetros!F20)/1000000 -> 3.499920338e-05 | H14: =Projeções!I43+Projeções!I46+Projeções!I49+Projeções!I53+Projeções!I59 -> 14326463.69 | I14: =H14/((1+Parâmetros!E11)*(1+Parâmetros!F11)*(1+Parâmetros!G11)) -> 11556695.08 | J14: =H14/(Parâmetros!G20)/1000000 -> 3.500646926e-05
A15: Despesas Primárias RPPS (II) | B15: =B14-Projeções!G46 -> 9348414 | C15: =B15/(1+Parâmetros!E11) -> 8473138.766 | D15: =B15/(Parâmetros!E20)/1000000 -> 2.615259565e-05 | E15: =E14-Projeções!H46 -> 13386439.36 | F15: =E15/((1+Parâmetros!E11)*(1+Parâmetros!F11)) -> 11446312.32 | G15: =E15/(Parâmetros!F20)/1000000 -> 3.499920338e-05 | H15: =H14-Projeções!I46 -> 14326463.69 | I15: =H15/((1+Parâmetros!E11)*(1+Parâmetros!F11)*(1+Parâmetros!G11)) -> 11556695.08 | J15: =H15/(Parâmetros!G20)/1000000 -> 3.500646926e-05
A16: Resultado Primário RPPS (I – II) | B16: =B13-B15 -> -1300179.96 | C16: =C13-C15 -> -1178446.442 | D16: =B16/(Parâmetros!E20)/1000000 -> -3.637310111e-06 | E16: =E13-E15 -> -4770000 | F16: =F13-F15 -> -4078673.072 | G16: =E16/(Parâmetros!F20)/1000000 -> -1.247129245e-05 | H16: =H13-H15 -> -5056200 | I16: =I13-I15 -> -4078673.072 | J16: =H16/(Parâmetros!G20)/1000000 -> -1.235473831e-05
A17: Fonte:

Sheet Metas PREF
A1: =Parâmetros!A7 -> Município de Jaguarão
A2: LEI DE DIRETRIZES ORÇAMENTÁRIAS
A3: ANEXO III - METAS FISCAIS
A4: DEMONSTRATIVO DAS METAS DE RESULTADO PRIMÁRIO (EXCLUÍDAS A RECEITAS E DESPESAS DO RPPS)
A5: EXERCÍCIO DE 2016
A7: AMF - Demonstativo I (LRF, art. 4º, § 1º) | H7: 1
A8: ESPECIFICAÇÃO | B8: 2015 | E8: 2016 | H8: 2017
B9: Valor | C9: Valor | D9: % PIB | E9: Valor | F9: Valor | G9: % PIB | H9: Valor | I9: Valor | J9: % PIB
B10: Corrente | C10: Constante | D10: (a / PIB) | E10: Corrente | F10: Constante | G10: (b / PIB) | H10: Corrente | I10: Constante | J10: (c / PIB)
B11: (a) | D11: x 100 | E11: (b) | G11: x 100 | H11: (c) | J11: x 100
A12: Receita Total | B12: =Metas!B12 - MetasRPPS!B12 -> 77140674.58 | C12: =B12/(1+Parâmetros!E11) -> 69918131.59 | D12: =B12/(Parâmetros!E20)/1000000 -> 0.0002158043996 | E12: =Metas!E12 - MetasRPPS!E12 -> 66719007.36 | F12: =E12/((1+Parâmetros!E11)*(1+Parâmetros!F11)) -> 57049270.16 | G12: =E12/(Parâmetros!F20)/1000000 -> 0.0001744386274 | H12: =Metas!H12 - MetasRPPS!H12 -> 65162225.76 | I12: =H12/((1+Parâmetros!E11)*(1+Parâmetros!F11)*(1+Parâmetros!G11)) -> 52564260.81 | J12: =H12/(Parâmetros!G20)/1000000 -> 0.0001592227853
A13: Receitas Primárias (I) | B13: =Metas!B13 - MetasRPPS!B13 -> 66856101.42 | C13: =B13/(1+Parâmetros!E11) -> 60596484.56 | D13: =B13/(Parâmetros!E20)/1000000 -> 0.0001870328579 | E13: =Metas!E13 - MetasRPPS!E13 -> 61506147.41 | F13: =E13/((1+Parâmetros!E11)*(1+Parâmetros!F11)) -> 52591921.84 | G13: =E13/(Parâmetros!F20)/1000000 -> 0.0001608094658 | H13: =Metas!H13 - MetasRPPS!H13 -> 64883594.22 | I13: =H13/((1+Parâmetros!E11)*(1+Parâmetros!F11)*(1+Parâmetros!G11)) -> 52339497.75 | J13: =H13/(Parâmetros!G20)/1000000 -> 0.0001585419539
A14: Despesa Total | B14: =Metas!B14 - MetasRPPS!B14 -> 80340494.62 | C14: =B14/(1+Parâmetros!E11) -> 72818358.22 | D14: =B14/(Parâmetros!E20)/1000000 -> 0.0002247560357 | E14: =Metas!E14 - MetasRPPS!E14 -> 66719007.36 | F14: =E14/((1+Parâmetros!E11)*(1+Parâmetros!F11)) -> 57049270.16 | G14: =E14/(Parâmetros!F20)/1000000 -> 0.0001744386274 | H14: =Metas!H14 - MetasRPPS!H14 -> 65162225.76 | I14: =H14/((1+Parâmetros!E11)*(1+Parâmetros!F11)*(1+Parâmetros!G11)) -> 52564260.81 | J14: =H14/(Parâmetros!G20)/1000000 -> 0.0001592227853
A15: Despesas Primárias (II) | B15: =Metas!B15 - MetasRPPS!B15 -> 79976128.2 | C15: =B15/(1+Parâmetros!E11) -> 72488106.77 | D15: =B15/(Parâmetros!E20)/1000000 -> 0.0002237367047 | E15: =Metas!E15 - MetasRPPS!E15 -> 65739263.42 | F15: =E15/((1+Parâmetros!E11)*(1+Parâmetros!F11)) -> 56211522.73 | G15: =E15/(Parâmetros!F20)/1000000 -> 0.0001718770607 | H15: =Metas!H15 - MetasRPPS!H15 -> 63771109.9 | I15: =H15/((1+Parâmetros!E11)*(1+Parâmetros!F11)*(1+Parâmetros!G11)) -> 51442092.62 | J15: =H15/(Parâmetros!G20)/1000000 -> 0.0001558236175
A16: Resultado Primário (I – II) | B16: =B13-B15 -> -13120026.78 | C16: =C13-C15 -> -11891622.21 | D16: =B16/(Parâmetros!E20)/1000000 -> -3.67038468e-05 | E16: =E13-E15 -> -4233116.005 | F16: =F13-F15 -> -3619600.893 | G16: =E16/(Parâmetros!F20)/1000000 -> -1.10675949e-05 | H16: =H13-H15 -> 1112484.319 | I16: =I13-I15 -> 897405.1328 | J16: =H16/(Parâmetros!G20)/1000000 -> 2.718336425e-06
A17: Fonte:

Sheet Avaliação
A1: =Parâmetros!A7 -> Município de Jaguarão
A2: LEI DE DIRETRIZES ORÇAMENTÁRIAS
A3: ANEXO III METAS FISCAIS
A4: DEMONSTRATIVO DA AVALIAÇÃO DO CUMPRIMENTO DAS METAS FISCAIS DO EXERCÍCIO ANTERIOR
A5: EXERCÍCIO DE 2016
A7: AMF - Demonstrativo II (LRF, art. 4º, §2º, inciso I) | F7: 1
A8: ESPECIFICAÇÃO | B8: I-Metas Previstas em | C8: % PIB | D8: II-Metas Realizadas em | E8: % PIB | F8: Variação
B10: 2014 (a) | D10: 2014 (b) | F10: Valor (c) = (b-a) | G10: % (c/a) x 100
A11: Receita Total | B11: =Plano!E58 -> 74864268.73 | C11: =B11/(Parâmetros!C20)/1000000 -> 0.0002264469538 | D11: =Plano!E29 -> 60909075.84 | E11: =D11/(Parâmetros!C20)/1000000 -> 0.0001842357498 | F11: =D11-B11 -> -13955192.89 | G11: =IF(B11=0,"-",(F11/B11)) -> -0.1864065879
A12: Receita Primárias (I) | B12: =B11-(Plano!E59+Plano!E60+Plano!E61+Plano!E62) -> 74859268.73 | C12: =B12/(Parâmetros!C20)/1000000 -> 0.00022643183 | D12: =D11-(Plano!E9+Plano!E21+Plano!E22+Plano!E23) -> 56086854.52 | E12: =D12/(Parâmetros!C20)/1000000 -> 0.0001696496549 | F12: -18772414.21 | G12: =IF(B12=0,"-",(F12/B12)) -> -0.2507694041
A13: Despesa Total | B13: =Plano!E63 -> 74864268.73 | C13: =B13/(Parâmetros!C20)/1000000 -> 0.0002264469538 | D13: =Plano!E55 -> 52651165.08 | E13: =D13/(Parâmetros!C20)/1000000 -> 0.0001592574956 | F13: -22213103.65 | G13: -0.2967116894
A14: Despesa Primárias (II) | B14: =B13-(Plano!E64+Plano!E65+Plano!E66) -> 74864268.73 | C14: =B14/(Parâmetros!C20)/1000000 -> 0.0002264469538 | D14: =D13-(Plano!E37+Plano!E48+Plano!E50) -> 52523598.25 | E14: =D14/(Parâmetros!C20)/1000000 -> 0.0001588716357 | F14: -22340670.48 | G14: -0.2984156642
A15: Resultado Primário (I–II) | B15: =B12-B14 -> -5000 | C15: =B15/(Parâmetros!C20)/1000000 -> -1.512383395e-08 | D15: =D12-D14 -> 3563256.27 | E15: =D15/(Parâmetros!C20)/1000000 -> 1.077801923e-05 | F15: 3568256.27 | G15: -713.651254
A16: Resultado Nominal | B16: -7147863.326 | C16: =B16/(Parâmetros!C20)/1000000 -> -2.162061961e-05 | D16: =Dívida!C12 -> -14821119.46 | E16: =D16/(Parâmetros!C20)/1000000 -> -4.483042994e-05 | F16: -7673256.134 | G16: 1.073503477
A17: Dívida Pública Consolidada | B17: 7480937.85 | C17: =B17/(Parâmetros!C20)/1000000 -> 2.262809237e-05 | D17: =Dívida!C7 -> 619862.9 | E17: =D17/(Parâmetros!C20)/1000000 -> 1.874940715e-06 | F17: -6861074.95 | G17: -0.9171410173
A18: Dívida Consolidada Líquida | B18: -2643372.517 | C18: =B18/(Parâmetros!C20)/1000000 -> -7.995585403e-06 | D18: =Dívida!C9 -> -13256071 | E18: =D18/(Parâmetros!C20)/1000000 -> -4.009652333e-05 | F18: -10612698.48 | G18: 4.014832725
A19: FONTE:

Sheet Comparação
A1: =Parâmetros!A7 -> Município de Jaguarão
A2: LEI ORÇAMENTÁRIA ANUAL
A3: ANEXO III METAS FISCAIS
A4: DEMONSTRATIVO DE METAS FISCAIS ATUAIS COMPARADAS COM AS FIXADAS NOS TRÊS EXERCÍCIOS ANTERIORES
A5: EXERCÍCIO DE 2016
A7: AMF – Demonstrativo III (LRF, art.4º, §2º, inciso II) | L7: 1
A8: ESPECIFICAÇÃO | B8: VALORES A PREÇOS CORRENTES
B9: 2013 | C9: 2014 | D9: Variação % | E9: 2015 | F9: Variação % | G9: 2016 | H9: Variação % | I9: 2017 | J9: Variação% | K9: 2018 | L9: Variação %
A11: Receita Total | B11: =Plano!D58 -> 46770482.29 | C11: =Plano!E58 -> 74864268.73 | D11: =IF(B11=0,"0",(C11/B11)-1) -> 0.600673439 | E11: =Plano!F58 -> 80789571.83 | F11: =IF(C11=0,"0",(E11/C11)-1) -> 0.07914727814 | G11: =IF(Metas!B12=0,"0",(Metas!B12)) -> 89688908.62 | H11: =IF(E11=0,"0",(G11/E11)-1) -> 0.1101545235 | I11: =IF(Metas!E12=0,"0",(Metas!E12)) -> 80105446.72 | J11: =IF(G11=0,"-",(I11/G11)-1) -> -0.1068522524 | K11: =IF(Metas!H12=0,"0",(Metas!H12)) -> 79488689.45 | L11: =IF(I11=0,"-",(K11/I11)-1) -> -0.007699317452
A12: Receitas Primárias (I) | B12: =B11-(Plano!D59+Plano!D60+Plano!D61+Plano!D62) -> 44913174.14 | C12: =C11-(Plano!E59+Plano!E60+Plano!E61+Plano!E62) -> 74859268.73 | D12: 0.6667552486 | E12: =E11-(Plano!F59+Plano!F60+Plano!F61+Plano!F62) -> 75504081.36 | F12: 0.008613664559 | G12: =IF(Metas!B13=0,"0",(Metas!B13)) -> 74904335.46 | H12: =IF(E12=0,"0",(G12/E12)-1) -> -0.007943224912 | I12: =IF(Metas!E13=0,"0",(Metas!E13)) -> 70122586.77 | J12: =IF(G12=0,"-",(I12/G12)-1) -> -0.06383807635 | K12: =IF(Metas!H13=0,"0",(Metas!H13)) -> 74153857.91 | L12: =IF(I12=0,"-",(K12/I12)-1) -> 0.05748891085
A13: Despesa Total | B13: =Plano!D63 -> 46770482.29 | C13: =Plano!E63 -> 74864268.73 | D13: 0.600673439 | E13: =Plano!F63 -> 80789571.83 | F13: 0.07914727814 | G13: =IF(Metas!B14=0,"0",(Metas!B14)) -> 89688908.62 | H13: 0.1101545235 | I13: =IF(Metas!E14=0,"0",(Metas!E14)) -> 80105446.72 | J13: -0.1068522524 | K13: =IF(Metas!H14=0,"0",(Metas!H14)) -> 79488689.45 | L13: -0.007699317452
A14: Despesas Primárias (II) | B14: =B13-(Plano!D64+Plano!D65+Plano!D66) -> 46770482.29 | C14: =C13-(Plano!E64+Plano!E65+Plano!E66) -> 74864268.73 | D14: 0.600673439 | E14: =E13-(Plano!F64+Plano!F65+Plano!F66) -> 80541089.66 | F14: 0.07582817579 | G14: =IF(Metas!B15=0,"0",(Metas!B15)) -> 89324542.2 | H14: 0.1090555464 | I14: =IF(Metas!E15=0,"0",(Metas!E15)) -> 79125702.78 | J14: -0.1141773489 | K14: =IF(Metas!H15=0,"0",(Metas!H15)) -> 78097573.59 | L14: -0.01299361835
A15: Resultado Primário (I – II) | B15: =B12-B14 -> -1857308.15 | C15: =C12-C14 -> -5000 | D15: -0.9973079319 | E15: =E12-E14 -> -5037008.3 | F15: 1006.40166 | G15: =IF(Metas!B16=0,"0",(Metas!B16)) -> -14420206.74 | H15: 1.862851495 | I15: =IF(Metas!E16=0,"0",(Metas!E16)) -> -9003116.005 | J15: -0.3756597137 | K15: =IF(Metas!H16=0,"0",(Metas!H16)) -> -3943715.681 | L15: -0.5619610278
A16: Resultado Nominal | B16: =Dívida!B12 -> 0 | C16: =Dívida!C12 -> -14821119.46 | D16: 0 | E16: =Dívida!D12 -> -3199986.85 | F16: -0.7840927699 | G16: =IF(Metas!B17=0,"0",(Metas!B17)) -> 10568400.53 | H16: -4.302638737 | I16: =IF(Metas!E17=0,"0",(Metas!E17)) -> 2348070.134 | J16: -0.7778216176 | K16: =IF(Metas!H17=0,"0",(Metas!H17)) -> -2361042.267 | L16: -2.005524594
A17: Dívida Pública Consolidada | B17: =Dívida!B7 -> 1905151.12 | C17: =' Avaliação'!D17 -> 619862.9 | D17: =IF(B17=0,"-",(C17/B17)-1) -> -0.6746384612 | E17: =Dívida!D7 -> 0 | F17: =IF(C17=0,"-",(E17/C17)-1) -> -1 | G17: =IF(Metas!B18=0,0,(Metas!B18)) -> 9442464.5 | H17: =IF(E17=0,"-",(G17/E17)-1) -> - | I17: =IF(Metas!E18=0,0,(Metas!E18)) -> 13412720.56 | J17: 0.4204682009 | K17: =IF(Metas!H18=0,0,(Metas!H18)) -> 12021604.7 | L17: =IF(I17=0,"-",(K17/I17)-1) -> -0.1037161591
A18: Dívida Consolidada Líquida | B18: -3275232.61 | C18: -3471746.65 | D18: 0.06000002546 | E18: 2498226 | F18: -1.719587646 | G18: =IF(Metas!B19=0,"0",(Metas!B19)) -> -3930959.883 | H18: -2.573500509 | I18: =IF(Metas!E19=0,"0",(Metas!E19)) -> -761741.6711 | J18: -0.8062199326 | K18: =IF(Metas!H19=0,"0",(Metas!H19)) -> -2252366.975 | L18: 1.956864591
A20: ESPECIFICAÇÃO | B20: VALORES A PREÇOS CONSTANTES
B21: 2013 | C21: 2014 | D21: Variação % | E21: 2015 | F21: Variação % | G21: 2016 | H21: Variação % | I21: 2017 | J21: Variação % | K21: 2018 | L21: Variação %
A23: Receita Total | B23: =B11*((1+Parâmetros!C11)*(1+Parâmetros!D11)) -> 54366127.41 | C23: =C11*(1+Parâmetros!D11) -> 81834132.15 | D23: =IF(B23=0,"-",(C23/B23)-1) -> 0.5052411501 | E23: =E11 -> 80789571.83 | F23: =IF(C23=0,"-",(E23/C23)-1) -> -0.01276435995 | G23: =Metas!C12 -> 81291496.98 | H23: =IF(E23=0,"-",(G23/E23)-1) -> 0.006212746774 | I23: =Metas!F12 -> 68495582.48 | J23: =IF(G23=0,"-",(I23/G23)-1) -> -0.1574077853 | K23: =Metas!I12 -> 64120955.89 | L23: =IF(I23=0,"-",(K23/I23)-1) -> -0.06386728062
A24: Receitas Primárias (I) | B24: =B12*((1+Parâmetros!C11)*(1+Parâmetros!D11)) -> 52207187.7 | C24: =C12*(1+Parâmetros!D11) -> 81828666.65 | D24: =IF(B24=0,"-",(C24/B24)-1) -> 0.5673831565 | E24: =E12 -> 75504081.36 | F24: =IF(C24=0,"-",(E24/C24)-1) -> -0.07729058223 | G24: =Metas!C13 -> 67891176.89 | H24: =IF(E24=0,"-",(G24/E24)-1) -> -0.1008277213 | I24: =Metas!F13 -> 59959561.09 | J24: =IF(G24=0,"-",(I24/G24)-1) -> -0.1168283739 | K24: =Metas!I13 -> 59817519.76 | L24: =IF(I24=0,"-",(K24/I24)-1) -> -0.002368952031
A25: Despesa Total | B25: =B13*((1+Parâmetros!C11)*(1+Parâmetros!D11)) -> 54366127.41 | C25: =C13*(1+Parâmetros!D11) -> 81834132.15 | D25: 0.5052411501 | E25: =E13 -> 80789571.83 | F25: =IF(C25=0,"-",(E25/C25)-1) -> -0.01276435995 | G25: =Metas!C14 -> 81291496.98 | H25: 0.006212746774 | I25: =Metas!F14 -> 68495582.48 | J25: -0.1574077853 | K25: =Metas!I14 -> 64120955.89 | L25: -0.06386728062
A26: Despesas Primárias (II) | B26: =B14*((1+Parâmetros!C11)*(1+Parâmetros!D11)) -> 54366127.41 | C26: =C14*(1+Parâmetros!D11) -> 81834132.15 | D26: 0.5052411501 | E26: =E14 -> 80541089.66 | F26: -0.0158007723 | G26: =Metas!C15 -> 80961245.54 | H26: 0.005216664908 | I26: =Metas!F15 -> 67657835.05 | J26: -0.1643182537 | K26: =Metas!I15 -> 62998787.7 | L26: -0.06886190411
A27: Resultado Primário (I – II) | B27: =B24-B26 -> -2158939.711 | C27: =C24-C26 -> -5465.5 | D27: -0.9974684332 | E27: =E24-E26 -> -5037008.3 | F27: 920.6006404 | G27: =Metas!C16 -> -13070068.65 | H27: 1.594807844 | I27: =Metas!F16 -> -7698273.964 | J27: -0.4109997299 | K27: =Metas!I16 -> -3181267.939 | L27: -0.5867556866
A28: Resultado Nominal | B28: =B16*((1+Parâmetros!C11)*(1+Parâmetros!D11)) -> 0 | C28: =C16*(1+Parâmetros!D11) -> -16200965.68 | D28: - | E28: =E16 -> -3199986.85 | F28: -0.8024817216 | G28: =Metas!C17 -> 9578900.143 | H28: -3.993418596 | I28: =Metas!F17 -> 2007758.999 | J28: -0.7903977525 | K28: =Metas!I17 -> -1904576.464 | L28: -1.948608107
A29: Dívida Pública Consolidada | B29: =B17*((1+Parâmetros!C11)*(1+Parâmetros!D11)) -> 2214552.501 | C29: =C17*(1+Parâmetros!D11) -> 677572.136 | D29: -0.6940365443 | E29: =E17 -> 0 | F29: -1 | G29: =Metas!C18 -> 8558383.486 | H29: - | I29: =Metas!F18 -> 11468784.52 | J29: 0.3400643404 | K29: =Metas!I18 -> 9697439.85 | L29: -0.1544492067
A30: Dívida Consolidada Líquida | B30: =B18*((1+Parâmetros!C11)*(1+Parâmetros!D11)) -> -3807138.705 | C30: =C18*(1+Parâmetros!D11) -> -3794966.263 | D30: -0.00319726776 | E30: =E18 -> 2498226 | F30: -1.658299923 | G30: =Metas!C19 -> -3562911.16 | H30: -2.426176479 | I30: =IF(Metas!F19=0,"0",(Metas!F19)) -> -651340.7215 | J30: -0.8171886157 | K30: =IF(Metas!I19=0,"0",(Metas!I19)) -> -1816911.619 | L30: 1.789494897

Sheet Patrimônio
A1: =Parâmetros!A7 -> Município de Jaguarão
A2: LEI DE DIRETRIZES ORÇAMENTÁRIAS
A3: ANEXO III - METAS FISCAIS
A4: DEMONSTRATIVO DA EVOLUÇÃO DO PATRIMÔNIO LÍQUIDO
A5: EXERCÍCIO DE 2016
A7: AMF - Demonstrativo IV (LRF, art.4º, §2º, inciso III) | G7: 1
A8: PATRIMÔNIO LÍQUIDO | B8: 2012 | C8: % | D8: 2013 | E8: % | F8: 2014 | G8: %
A9: Patrimônio/Capital | B9: 6965898.13 | C9: =IF(B12=0,"-",(B9/B12)) -> 1 | D9: 17730964.55 | E9: =IF(D12=0,"-",(D9/D12)) -> 1 | F9: 2929105.91 | G9: =IF(F12=0,"-",(F9/F12)) -> 0.09100199251
A10: Reservas | C10: =IF(B12=0,"-",(B10/B12)) -> 0 | E10: =IF(D12=0,"-",(D10/D12)) -> 0 | F10: 944461.6 | G10: =IF(F12=0,"-",(F10/F12)) -> 0.02934270391
A11: Resultado Acumulado | C11: =IF(B12=0,"-",(B11/B12)) -> 0 | E11: =IF(D12=0,"-",(D11/D12)) -> 0 | F11: 28313704.76 | G11: =IF(F12=0,"-",(F11/F12)) -> 0.8796553036
A12: TOTAL | B12: =SUM(B9:B11) -> 6965898.13 | C12: =IF(B12=0,"-",(B12/B12)) -> 1 | D12: =SUM(D9:D11) -> 17730964.55 | E12: =IF(D12=0,"-",(D12/D12)) -> 1 | F12: =SUM(F9:F11) -> 32187272.27 | G12: =IF(F12=0,"-",(F12/F12)) -> 1
A14: REGIME PREVIDENCIÁRIO
A15: PATRIMÔNIO LÍQUIDO | B15: 2012 | C15: % | D15: 2013 | E15: % | F15: 2014 | G15: %
A16: Patrimônio/Capital | B16: 23117624.23 | C16: =IF(B19=0,"-",(B16/B19)) -> 1 | D16: 26281006.31 | E16: =IF(D19=0,"-",(D16/D19)) -> 1 | F16: 23203395.71 | G16: =IF(F19=0,"-",(F16/F19)) -> 0.4664090199
A17: Reservas | C17: =IF(B19=0,"-",(B17/B19)) -> 0 | E17: =IF(D19=0,"-",(D17/D19)) -> 0 | F17: 0 | G17: =IF(F19=0,"-",(F17/F19)) -> 0
A18: Resultado Acumulado | C18: =IF(B19=0,"-",(B18/B19)) -> 0 | E18: =IF(D19=0,"-",(D18/D19)) -> 0 | F18: 26545632.98 | G18: =IF(F19=0,"-",(F18/F19)) -> 0.5335909801
A19: TOTAL | B19: =SUM(B16:B18) -> 23117624.23 | C19: =IF(B19=0,"-",(B19/B19)) -> 1 | D19: =SUM(D16:D18) -> 26281006.31 | E19: =IF(D19=0,"-",(D19/D19)) -> 1 | F19: =SUM(F16:F18) -> 49749028.69 | G19: =IF(F19=0,"-",(F19/F19)) -> 1
A21: CONSOLIDAÇÃO GERAL
A22: PATRIMÔNIO LÍQUIDO | B22: 2012 | C22: % | D22: 2013 | E22: % | F22: 2014 | G22: %
A23: Patrimônio/Capital | B23: =B9+B16 -> 30083522.36 | C23: =IF(B26=0,"-",(B23/B26)) -> 1 | D23: =D9+D16 -> 44011970.86 | E23: =IF(D26=0,"-",(D23/D26)) -> 1 | F23: =F9+F16 -> 26132501.62 | G23: =IF(F26=0,"-",(F23/F26)) -> 0.3189367999
A24: Reservas | B24: =B10+B17 -> 0 | C24: =IF(B26=0,"-",(B24/B26)) -> 0 | D24: =D10+D17 -> 0 | E24: =IF(D26=0,"-",(D24/D26)) -> 0 | F24: =F10+F17 -> 944461.6 | G24: =IF(F26=0,"-",(F24/F26)) -> 0.01152677859
A25: Resultado Acumulado | B25: =B11+B18 -> 0 | C25: =IF(B26=0,"-",(B25/B26)) -> 0 | D25: =D11+D18 -> 0 | E25: =IF(D26=0,"-",(D25/D26)) -> 0 | F25: =F11+F18 -> 54859337.74 | G25: =IF(F26=0,"-",(F25/F26)) -> 0.6695364216
A26: TOTAL | B26: =SUM(B23:B25) -> 30083522.36 | C26: =IF(B26=0,"-",(B26/B26)) -> 1 | D26: =SUM(D23:D25) -> 44011970.86 | E26: =IF(D26=0,"-",(D26/D26)) -> 1 | F26: =SUM(F23:F25) -> 81936300.96 | G26: =IF(F26=0,"-",(F26/F26)) -> 1

Sheet Alienação
A1: =Parâmetros!A7 -> Município de Jaguarão
A2: LEI DE DIRETRIZES ORÇAMENTÁRIAS
A3: ANEXO III - METAS FISCAIS
A4: DEMONSTRATIVO DA ORIGEM E APLICAÇÃO DOS RECURSOS OBTIDOS COM A ALIENAÇÃO DE ATIVOS
A5: EXERCÍCIO DE 2016
A7: AMF - Demonstrativo V (LRF, art.4º, §2º, inciso III) | D7: 1
A8: RECEITAS REALIZADAS | B8: 2012 | C8: 2013 | D8: 2014
A9: SALDOS DE EXERCÍCIOS ANTERIORES A 2012
A10: RECEITAS DE CAPITAL | B10: =B11 -> 6111.94 | C10: =C11 -> 1279.47 | D10: =D11 -> 152720
A11: ALIENAÇÃO DE ATIVOS | B11: =B12+B13 -> 6111.94 | C11: =C12+C13 -> 1279.47 | D11: =D12+D13 -> 152720
A12: Alienação de Bens Móveis
A13: Alienação de Bens Imóveis | B13: =Plano!C22 -> 6111.94 | C13: =Plano!D22 -> 1279.47 | D13: =Plano!E22 -> 152720
A14: Rendimento de Aplicações Financeira de Alienaç de Bens
A15: TOTAL | B15: =B12+B13+B14 -> 6111.94 | C15: =C12+C13+C14 -> 1279.47 | D15: =D9+D12+D13+D14 -> 152720
A17: DESPESAS EXECUTADAS | B17: 2012 | C17: 2013 | D17: 2014
A19: APLICAÇÃO DOS RECURSOS DA ALIENAÇÃO DE ATIVOS
A20: DESPESAS DE CAPITAL | B20: =B21+B22+B23 -> 0 | C20: =C21+C22+C23 -> 0 | D20: =D21+D22+D23 -> 152720
A21: Investimentos | B21: 0 | C21: 0 | D21: 0
A22: Inversões Financeiras | D22: 152720
A23: Amortização da Dívida
A24: DESPESAS CORRENTES DOS REGIMES DE PREVID. | B24: =B25+B26 -> 0 | C24: =C25+C26 -> 0 | D24: =D25+D26 -> 0
A25: Regime Geral de Previdência Social
A26: Regime Próprio dos Servidores Públicos
A27: TOTAL | B27: =B20+B24 -> 0 | C27: =C20+C24 -> 0 | D27: =D20+D24 -> 152720
A28: SALDO FINANCEIRO
B29: =C29+B15-B27 -> 7391.41 | C29: =D29+C15-C27 -> 1279.47 | D29: =D15-D27 -> 0
A30: FONTE:

Sheet Renúncia
A1: =Parâmetros!A7 -> Município de Jaguarão
A2: LEI ORÇAMENTÁRIA ANUAL
A3: ANEXO VI - METAS FISCAIS
A4: DEMONSTRATIVO DA ESTIMATIVA E COMPENSAÇÃO DA RENÚNCIA DE RECEITA
A5: EXERCÍCIO DE 2016
A7: AMF - Demonstrativo VIII (LRF, art. 4°, § 2°, inciso V) | G7: 1
A8: TRIBUTO | B8: MODALIDADE | C8: SETORES/ PROGRAMAS/ BENEFICIÁRIO | D8: RENÚNCIA DE RECEITA PREVISTA | G8: COMPENSAÇÃO
D10: 2016 | E10: 2017 | F10: 2018
A11: IPTU | B11: Desconto | D11: 269264.38 | E11: =D11*(1+B24) -> 297079.3905 | F11: =E11*(1+B25) -> 314904.1539 | G11: Vide Obsevação
E12: =D12*(1+B24) -> 0 | F12: =E12*(1+B25) -> 0
E13: =D13*(1+B24) -> 0 | F13: =E13*(1+B25) -> 0 | G13: abaixo
E14: =D14*(1+B24) -> 0 | F14: =E14*(1+B25) -> 0
E15: =D15*(1+B24) -> 0 | F15: =E15*(1+B25) -> 0
E16: =D16*(1+B24) -> 0 | F16: =E16*(1+B25) -> 0
E17: =D17*(1+B24) -> 0 | F17: =E17*(1+B25) -> 0
A18: TOTAL | D18: =SUM(D11:D17) -> 269264.38 | E18: =SUM(E11:E17) -> 297079.3905 | F18: =SUM(F11:F17) -> 314904.1539 | G18: -
A19: FONTE:
A20: Obs: 1 - Os valores da renúncia para 2016 foram previstos de acordo com informações do setor tributário
A21: da Prefeitura Municipal
A22: 2 - Os valores da renúncia projetados para 2017 e 2018, foram calculados a partir dos valores de 2016, apli
A23: cando-se, sobre eles, as projeções de inflação para os referidos exercícios a saber:
A24: Inflação para 2016: | B24: 0.1033
A25: Inflação para 2017: | B25: =Parâmetros!G11 -> 0.06

Sheet DOCC
A1: =Parâmetros!A7 -> Município de Jaguarão
A2: LEI DE ORÇAMENTÁRIA ANUAL
A3: ANEXO VII - METAS FISCAIS
A4: DEMONSTRATIVO DA MARGEM DE EXPANSÃO DAS DESPESAS OBRIGATÓRIAS DE CARÁTER CONTINUADO
A5: EXERCÍCIO DE 2016
A7: AMF - Demonstrativo IX (LRF, art. 4°, § 2°, inciso V) | B7: 1
A8: EVENTO | B8: Valor Previsto 2016
A9: Aumento Permanente da Receita | B9: =(B10+B11) -> 1020358.996
A10: Decorrente de Receitas Tributárias | B10: =((Projeções!F10)*(1+Parâmetros!E12)*(1+Parâmetros!E15))-Projeções!F10 -> 840595.866
A11: Decorrente de Transferências Correntes | B11: =((Projeções!F22)*(1+Parâmetros!E12)*(1+Parâmetros!E16))-Projeções!F22 -> 179763.1297
A12: (-) Transferências Constitucionais | B12: =((Projeções!F32)*(1+Parâmetros!E11))-Projeções!F32 -> 232991.9352
A13: (-) Transferências ao FUNDEB | B13: =((Projeções!F33)*(1+Parâmetros!E12))-Projeções!F33 -> 147029.085
A14: Saldo Final do Aumento Permanente de Receita (I) | B14: =B9+B13 -> 1167388.081
A15: Redução Permanente de Despesa (II) | B15: 0
A16: Margem Bruta (III) = (I+II) | B16: =B14+B15 -> 1167388.081
A17: Saldo Utilizado da Margem Bruta (IV) | B17: 0
A18: Novas DOCC | B18: =B19+B20 -> 117776.4621
A19: Relativas a Pessoal e Encargos Sociais | B19: =((Projeções!F41)*(1+Parâmetros!E13)*(1+Parâmetros!E17))-Projeções!F41 -> 0
A20: Relativas a Outras Despesas Correntes | B20: =((Projeções!F47)*(1+Parâmetros!E14))-Projeções!F47 -> 117776.4621
A21: Novas DOCC geradas por PPP | B21: 0
A22: Margem Líquida de Expansão de DOCC (V) = (III-IV) | B22: =IF(B16-B17-B18<0,"SEM MARGEM",B16-B17-B18) -> 1049611.619
A23: FONTE:

Sheet Anexo Riscos
A1: =Parâmetros!A7 -> Município de Jaguarão
A2: LEI DE DIRETRIZES ORÇAMENTÁRIAS
A3: ANEXO IV RISCOS FISCAIS
A4: DEMONSTRATIVO DE RISCOS FISCAIS E PROVIDÊNCIAS
A5: EXERCÍCIO DE 2016
A7: ARF (LRF, art 4o, § 3o) | C7: 1
A8: PASSIVOS CONTINGENTES | C8: PROVIDÊNCIAS
A9: Descrição | B9: Valor | C9: Descrição | D9: Valor
A10: Demandas Judiciais | B10: 150000 | C10: CONTINGENCIAMENTO ORÇAMENTÁRIO | D10: 270000
A11: Dívidas em Processo de Reconhecimento | B11: 0 | D11: 0
A12: Avais e Garantias Concedidas | B12: 0 | D12: 0
A13: Assunção de Passivos | B13: 0 | D13: 0
A14: Assistências Diversas | B14: 120000 | D14: 0
A15: Outros Passivos Contingentes | B15: 0 | D15: 0
A16: SUBTOTAL | B16: =SUM(B10:B15) -> 270000 | C16: SUBTOTAL | D16: =SUM(D10:D15) -> 270000
A18: DEMAIS RISCOS FISCAIS PASSIVOS | C18: PROVIDÊNCIAS
A19: Descrição | B19: Valor | C19: Descrição | D19: Valor
A20: Frustração de Arrecadação | B20: 270000 | C20: CONTINGENCIAMENTO ORÇAMENTÁRIO | D20: 1247000
A21: Restituição de Tributos a Maior | B21: 0 | D21: 0
A22: Discrepância de Projeções: | B22: 1000000 | D22: 0
A23: Outros Riscos Fiscais | B23: 0 | D23: 0
A24: SUBTOTAL | B24: =SUM(B20:B23) -> 1270000 | C24: SUBTOTAL | D24: =SUM(D20:D23) -> 1247000
A25: TOTAL | B25: =B16+B24 -> 1540000 | C25: TOTAL | D25: =D16+D24 -> 1517000
